[Event "Titled Tuesday Blitz August 16 Late 2022"]
[White "Ambartsumova, Karina"]
[Black "Xu, Jeffrey"]
[WhiteFideId "4166299"]
[BlackFideId "2617110"]
[WhiteElo "2262"]
[BlackElo "2047"]
[Result "1-0"]
[Round "05"]
[TimeControl "180+1"]
[Date "2022.08.18"]
[WhiteClock "0:00:00"]
[BlackClock "0:00:00"]

1. Nf3 {[%clk 0:00:00]}  a6 {[%clk 0:00:00]} 2. g3 {[%clk 0:00:00]}  b5 {[%clk 0:00:00]} 3. Bg2 {[%clk 0:00:00]}  Bb7 {[%clk 0:00:00]} 4. O-O {[%clk 0:00:00]}  Nf6 {[%clk 0:00:00]} 5. a4 {[%clk 0:00:00]}  b4 {[%clk 0:00:00]} 6. d4 {[%clk 0:00:00]}  h5 {[%clk 0:00:00]} 7. h4 {[%clk 0:00:00]}  d6 {[%clk 0:00:00]} 8. c4 {[%clk 0:00:00]}  Qc8 {[%clk 0:00:00]} 9. d5 {[%clk 0:00:00]}  Qg4 {[%clk 0:00:00]} 10. Bf4 {[%clk 0:00:00]}  Nbd7 {[%clk 0:00:00]} 11. Nbd2 {[%clk 0:00:00]}  a5 {[%clk 0:00:00]} 12. e4 {[%clk 0:00:00]}  Nc5 {[%clk 0:00:00]} 13. e5 {[%clk 0:00:00]}  Nfd7 {[%clk 0:00:00]} 14. e6 {[%clk 0:00:00]}  fxe6 {[%clk 0:00:00]} 15. dxe6 {[%clk 0:00:00]}  Nxe6 {[%clk 0:00:00]} 16. Be3 {[%clk 0:00:00]}  Nec5 {[%clk 0:00:00]} 17. Qc2 {[%clk 0:00:00]}  O-O-O {[%clk 0:00:00]} 18. Ng5 {[%clk 0:00:00]}  Bxg2 {[%clk 0:00:00]} 19. Kxg2 {[%clk 0:00:00]}  Ne5 {[%clk 0:00:00]} 20. f4 {[%clk 0:00:00]}  Nc6 {[%clk 0:00:00]} 21. Ndf3 {[%clk 0:00:00]}  Rh6 {[%clk 0:00:00]} 22. Nf7 {[%clk 0:00:00]}  Rg6 {[%clk 0:00:00]} 23. N3g5 {[%clk 0:00:00]}  Rd7 {[%clk 0:00:00]} 24. Qxg6 {[%clk 0:00:00]}  Qe2+ {[%clk 0:00:00]} 25. Bf2 {[%clk 0:00:00]}  Qxb2 {[%clk 0:00:00]} 26. Rab1 {[%clk 0:00:00]}  Qf6 {[%clk 0:00:00]} 27. Qxf6 {[%clk 0:00:00]}  exf6 {[%clk 0:00:00]} 28. Bxc5 {[%clk 0:00:00]}  dxc5 {[%clk 0:00:00]} 29. Rfe1 {[%clk 0:00:00]}  fxg5 {[%clk 0:00:00]} 30. Re8+ {[%clk 0:00:00]}  Nd8 {[%clk 0:00:00]} 31. Rxf8 {[%clk 0:00:00]}  Rxf7 {[%clk 0:00:00]} 32. Rg8 {[%clk 0:00:00]}  gxf4 {[%clk 0:00:00]} 33. Rd1 {[%clk 0:00:00]}  Rd7 {[%clk 0:00:00]} 34. Rxd7 {[%clk 0:00:00]}  Kxd7 {[%clk 0:00:00]} 35. Rxg7+ {[%clk 0:00:00]}  Kd6 {[%clk 0:00:00]} 36. gxf4 {[%clk 0:00:00]}  b3 {[%clk 0:00:00]} 37. Rg3 {[%clk 0:00:00]}  Ne6 {[%clk 0:00:00]} 38. Rxb3 {[%clk 0:00:00]}  Nxf4+ {[%clk 0:00:00]} 39. Kf3 {[%clk 0:00:00]}  Ng6 {[%clk 0:00:00]} 40. Kg3 {[%clk 0:00:00]}  Ne5 {[%clk 0:00:00]} 41. Rc3 {[%clk 0:00:00]}  Ke6 {[%clk 0:00:00]} 42. Kf4 {[%clk 0:00:00]}  Ng6+ {[%clk 0:00:00]} 43. Kg5 {[%clk 0:00:00]}  Ne5 {[%clk 0:00:00]} 44. Kxh5 {[%clk 0:00:00]}  Kf5 {[%clk 0:00:00]} 45. Rc1 {[%clk 0:00:00]}  Ke4 {[%clk 0:00:00]} 46. Kg5 {[%clk 0:00:00]}  Kd4 {[%clk 0:00:00]} 47. h5 {[%clk 0:00:00]}  Nf3+ {[%clk 0:00:00]} 48. Kg6 {[%clk 0:00:00]}  Ne5+ {[%clk 0:00:00]} 49. Kg7 {[%clk 0:00:00]}  Nxc4 {[%clk 0:00:00]} 50. Rxc4+ {[%clk 0:00:00]}  Kxc4 {[%clk 0:00:00]} 51. h6 {[%clk 0:00:00]}  Kb3 {[%clk 0:00:00]} 52. h7 {[%clk 0:00:00]}  Kxa4 {[%clk 0:00:00]} 53. h8=Q {[%clk 0:00:00]}  Kb3 {[%clk 0:00:00]} 54. Qh3+ {[%clk 0:00:00]}  Kb4 {[%clk 0:00:00]} 55. Qg4+ {[%clk 0:00:00]}  c4 {[%clk 0:00:00]} 56. Qd4 {[%clk 0:00:00]}  Kb3 {[%clk 0:00:00]} 57. Qc5 {[%clk 0:00:00]}  a4 {[%clk 0:00:00]} 58. Qb5+ {[%clk 0:00:00]}  Kc2 {[%clk 0:00:00]} 59. Qxa4+ {[%clk 0:00:00]}  Kd3 {[%clk 0:00:00]} 60. Qb5 {[%clk 0:00:00]}  Kd4 {[%clk 0:00:00]} 61. Qb4 {[%clk 0:00:00]}  Kd3 {[%clk 0:00:00]} 62. Qb5 {[%clk 0:00:00]}  Kd4 {[%clk 0:00:00]} 63. Kf6 {[%clk 0:00:00]}  c3 {[%clk 0:00:00]} 64. Kf5 {[%clk 0:00:00]}  c2 {[%clk 0:00:00]} 65. Qc6 {[%clk 0:00:00]}  Kd3 {[%clk 0:00:00]} 66. Qe4+ {[%clk 0:00:00]}  Kd2 {[%clk 0:00:00]} 67. Qd4+ {[%clk 0:00:00]}  Kc1 {[%clk 0:00:00]} 68. Qe3+ {[%clk 0:00:00]}  Kb1 {[%clk 0:00:00]} 69. Qd3 {[%clk 0:00:00]}  Ka1 {[%clk 0:00:00]} 70. Qxc2 {[%clk 0:00:00]}  c5 {[%clk 0:00:00]} 71. Qxc5 {[%clk 0:00:00]}  Kb1 {[%clk 0:00:00]} 72. Ke4 {[%clk 0:00:00]}  Kb2 {[%clk 0:00:00]} 73. Kd3 {[%clk 0:00:00]}  Kb3 {[%clk 0:00:00]} 74. Qc4+ {[%clk 0:00:00]}  Ka3 {[%clk 0:00:00]} 75. Qb5 {[%clk 0:00:00]} 1-0


[Site "https://www.chess.com"]

[Event "Titled Tuesday Blitz August 16 Late 2022"]
[White "Averjanov, Alexey"]
[Black "D`Arruda, Ricardo D."]
[WhiteFideId "14109867"]
[BlackFideId "100692"]
[WhiteElo "2399"]
[BlackElo "2271"]
[Result "1/2-1/2"]
[Round "05"]
[TimeControl "180+1"]
[Date "2022.08.18"]
[WhiteClock "0:00:00"]
[BlackClock "0:00:00"]

1. d4 {[%clk 0:00:00]}  Nf6 {[%clk 0:00:00]} 2. c4 {[%clk 0:00:00]}  e5 {[%clk 0:00:00]} 3. dxe5 {[%clk 0:00:00]}  Ne4 {[%clk 0:00:00]} 4. a3 {[%clk 0:00:00]}  Nc6 {[%clk 0:00:00]} 5. Nf3 {[%clk 0:00:00]}  d6 {[%clk 0:00:00]} 6. Nbd2 {[%clk 0:00:00]}  Nxd2 {[%clk 0:00:00]} 7. Qxd2 {[%clk 0:00:00]}  dxe5 {[%clk 0:00:00]} 8. Qxd8+ {[%clk 0:00:00]}  Kxd8 {[%clk 0:00:00]} 9. Bg5+ {[%clk 0:00:00]}  f6 {[%clk 0:00:00]} 10. O-O-O+ {[%clk 0:00:00]}  Ke8 {[%clk 0:00:00]} 11. Be3 {[%clk 0:00:00]}  Be6 {[%clk 0:00:00]} 12. Nd2 {[%clk 0:00:00]}  Na5 {[%clk 0:00:00]} 13. c5 {[%clk 0:00:00]}  Bb3 {[%clk 0:00:00]} 14. Nxb3 {[%clk 0:00:00]}  Nxb3+ {[%clk 0:00:00]} 15. Kc2 {[%clk 0:00:00]}  Nxc5 {[%clk 0:00:00]} 16. g3 {[%clk 0:00:00]}  c6 {[%clk 0:00:00]} 17. Bh3 {[%clk 0:00:00]}  a5 {[%clk 0:00:00]} 18. Bxc5 {[%clk 0:00:00]}  Bxc5 {[%clk 0:00:00]} 19. Rd7 {[%clk 0:00:00]}  Rb8 {[%clk 0:00:00]} 20. Rxg7 {[%clk 0:00:00]}  Be7 {[%clk 0:00:00]} 21. Rd1 {[%clk 0:00:00]}  Kf8 {[%clk 0:00:00]} 22. Rg4 {[%clk 0:00:00]}  Rd8 {[%clk 0:00:00]} 23. Rxd8+ {[%clk 0:00:00]}  Bxd8 {[%clk 0:00:00]} 24. Rc4 {[%clk 0:00:00]}  Bb6 {[%clk 0:00:00]} 25. e3 {[%clk 0:00:00]}  Ke7 {[%clk 0:00:00]} 26. Rc3 {[%clk 0:00:00]}  Bc7 {[%clk 0:00:00]} 27. Rd3 {[%clk 0:00:00]}  Rd8 {[%clk 0:00:00]} 28. Bf5 {[%clk 0:00:00]}  Rxd3 {[%clk 0:00:00]} 29. Kxd3 {[%clk 0:00:00]}  h6 {[%clk 0:00:00]} 30. Ke4 {[%clk 0:00:00]}  b5 {[%clk 0:00:00]} 31. b3 {[%clk 0:00:00]}  a4 {[%clk 0:00:00]} 32. bxa4 {[%clk 0:00:00]}  bxa4 {[%clk 0:00:00]} 33. Kf3 {[%clk 0:00:00]}  Bd6 {[%clk 0:00:00]} 34. Bc2 {[%clk 0:00:00]}  Bxa3 {[%clk 0:00:00]} 35. Bxa4 {[%clk 0:00:00]}  Bb4 {[%clk 0:00:00]} 36. Bxc6 {[%clk 0:00:00]}  f5 {[%clk 0:00:00]} 37. Bd5 {[%clk 0:00:00]}  Kf6 {[%clk 0:00:00]} 38. Bb3 {[%clk 0:00:00]}  Be1 {[%clk 0:00:00]} 39. Ke2 {[%clk 0:00:00]}  Bc3 {[%clk 0:00:00]} 40. h3 {[%clk 0:00:00]}  Bb4 {[%clk 0:00:00]} 41. g4 {[%clk 0:00:00]}  fxg4 {[%clk 0:00:00]} 42. hxg4 {[%clk 0:00:00]}  e4 {[%clk 0:00:00]} 43. Ba4 {[%clk 0:00:00]}  Ke5 {[%clk 0:00:00]} 44. Bc6 {[%clk 0:00:00]}  Bc5 {[%clk 0:00:00]} 45. Bb7 {[%clk 0:00:00]}  Bb6 {[%clk 0:00:00]} 46. Ba8 {[%clk 0:00:00]}  Ba7 {[%clk 0:00:00]} 47. Bc6 {[%clk 0:00:00]}  Bb6 {[%clk 0:00:00]} 48. Kf1 {[%clk 0:00:00]}  Bc5 {[%clk 0:00:00]} 49. Kg2 {[%clk 0:00:00]}  Bb4 {[%clk 0:00:00]} 50. Kg3 {[%clk 0:00:00]}  Be1 {[%clk 0:00:00]} 51. Bb7 {[%clk 0:00:00]}  Bd2 {[%clk 0:00:00]} 52. Ba8 {[%clk 0:00:00]}  Be1 {[%clk 0:00:00]} 53. Bc6 {[%clk 0:00:00]}  Bd2 {[%clk 0:00:00]} 54. Bb7 {[%clk 0:00:00]}  Be1 {[%clk 0:00:00]} 55. Kg2 {[%clk 0:00:00]}  Bd2 {[%clk 0:00:00]} 56. Kf1 {[%clk 0:00:00]}  Bc3 {[%clk 0:00:00]} 57. Ke2 {[%clk 0:00:00]}  Bb4 {[%clk 0:00:00]} 58. Kd1 {[%clk 0:00:00]}  Bc3 {[%clk 0:00:00]} 59. Ba8 {[%clk 0:00:00]}  Bb4 {[%clk 0:00:00]} 60. Bc6 {[%clk 0:00:00]}  Ba5 {[%clk 0:00:00]} 61. Bd7 {[%clk 0:00:00]}  Bb4 {[%clk 0:00:00]} 62. Bf5 {[%clk 0:00:00]}  Ba5 {[%clk 0:00:00]} 63. Ke2 {[%clk 0:00:00]}  Bb4 {[%clk 0:00:00]} 64. Kf1 {[%clk 0:00:00]}  Bc3 {[%clk 0:00:00]} 65. Kg2 {[%clk 0:00:00]}  Be1 {[%clk 0:00:00]} 66. Kf1 {[%clk 0:00:00]}  Bd2 {[%clk 0:00:00]} 67. Bh7 {[%clk 0:00:00]}  Ba5 {[%clk 0:00:00]} 68. Ke2 {[%clk 0:00:00]}  Bb4 {[%clk 0:00:00]} 69. Kd1 {[%clk 0:00:00]}  Ba5 {[%clk 0:00:00]} 70. Bg6 {[%clk 0:00:00]}  Bb4 {[%clk 0:00:00]} 71. Bh5 {[%clk 0:00:00]}  Ba5 {[%clk 0:00:00]} 72. Ke2 {[%clk 0:00:00]}  Bb4 {[%clk 0:00:00]} 73. Kf1 {[%clk 0:00:00]}  Bc3 {[%clk 0:00:00]} 74. Kg2 {[%clk 0:00:00]}  Be1 {[%clk 0:00:00]} 75. Kg3 {[%clk 0:00:00]}  Bd2 {[%clk 0:00:00]} 76. Bg6 {[%clk 0:00:00]}  Be1 {[%clk 0:00:00]} 77. Bf7 {[%clk 0:00:00]}  Bd2 {[%clk 0:00:00]} 78. Ba2 {[%clk 0:00:00]}  Be1 {[%clk 0:00:00]} 79. Bb1 {[%clk 0:00:00]}  Bd2 {[%clk 0:00:00]} 80. f3 {[%clk 0:00:00]}  exf3 {[%clk 0:00:00]} 81. Kxf3 {[%clk 0:00:00]}  Bc1 {[%clk 0:00:00]} 82. Bf5 {[%clk 0:00:00]}  Bd2 {[%clk 0:00:00]} 83. Ke2 {[%clk 0:00:00]}  Bc1 {[%clk 0:00:00]} 84. Kd3 {[%clk 0:00:00]}  Bb2 {[%clk 0:00:00]} 85. e4 {[%clk 0:00:00]}  Ba3 {[%clk 0:00:00]} 86. Kc4 {[%clk 0:00:00]}  Be7 {[%clk 0:00:00]} 87. Kb5 {[%clk 0:00:00]}  Bg5 {[%clk 0:00:00]} 88. Kc6 {[%clk 0:00:00]}  Bf4 {[%clk 0:00:00]} 89. Kd7 {[%clk 0:00:00]}  Bg5 {[%clk 0:00:00]} 90. Ke8 {[%clk 0:00:00]}  Bf4 {[%clk 0:00:00]} 91. Kf7 {[%clk 0:00:00]}  Bg5 {[%clk 0:00:00]} 92. Kg6 {[%clk 0:00:00]}  Bf4 {[%clk 0:00:00]} 93. Kh5 {[%clk 0:00:00]}  Bg5 {[%clk 0:00:00]} 94. Kg6 {[%clk 0:00:00]}  Bf4 {[%clk 0:00:00]} 95. g5 {[%clk 0:00:00]}  Bxg5 {[%clk 0:00:00]} 96. Kh5 {[%clk 0:00:00]}  Bf4 {[%clk 0:00:00]} 97. Kg4 {[%clk 0:00:00]}  Bg5 {[%clk 0:00:00]} 98. Kf3 {[%clk 0:00:00]}  Bc1 {[%clk 0:00:00]} 99. Bg6 {[%clk 0:00:00]}  Bg5 {[%clk 0:00:00]} 100. Bf7 {[%clk 0:00:00]}  Bc1 {[%clk 0:00:00]} 101. Be8 {[%clk 0:00:00]}  Bg5 {[%clk 0:00:00]} 102. Bh5 {[%clk 0:00:00]}  Bc1 {[%clk 0:00:00]} 103. Bg4 {[%clk 0:00:00]}  Bg5 {[%clk 0:00:00]} 104. Bf5 {[%clk 0:00:00]}  Bc1 {[%clk 0:00:00]} 105. Bg6 {[%clk 0:00:00]}  Bg5 {[%clk 0:00:00]} 106. Ke2 {[%clk 0:00:00]}  Bc1 {[%clk 0:00:00]} 107. Kd1 {[%clk 0:00:00]}  Bg5 {[%clk 0:00:00]} 108. Kc2 {[%clk 0:00:00]}  Kf6 {[%clk 0:00:00]} 109. Bh5 {[%clk 0:00:00]}  Ke5 {[%clk 0:00:00]} 110. Bg6 {[%clk 0:00:00]}  Kd4 {[%clk 0:00:00]} 111. Kd1 {[%clk 0:00:00]}  Bf6 {[%clk 0:00:00]} 112. Ke2 {[%clk 0:00:00]}  Be5 {[%clk 0:00:00]} 113. Kf3 {[%clk 0:00:00]}  h5 {[%clk 0:00:00]} 114. Bxh5 {[%clk 0:00:00]}  Kd3 {[%clk 0:00:00]} 115. Bg6 {[%clk 0:00:00]}  Kd4 {[%clk 0:00:00]} 116. Bf5 {[%clk 0:00:00]}  Bf6 {[%clk 0:00:00]} 117. Ke2 {[%clk 0:00:00]}  Bg7 {[%clk 0:00:00]} 118. Kd1 {[%clk 0:00:00]}  Bh8 {[%clk 0:00:00]} 119. Kc2 {[%clk 0:00:00]}  Bg7 {[%clk 0:00:00]} 120. Kb3 {[%clk 0:00:00]}  Bh8 {[%clk 0:00:00]} 121. Ka4 {[%clk 0:00:00]}  Bg7 {[%clk 0:00:00]} 122. Kb5 {[%clk 0:00:00]}  Be5 {[%clk 0:00:00]} 123. Kc6 {[%clk 0:00:00]}  Bf4 {[%clk 0:00:00]} 124. Kd7 {[%clk 0:00:00]}  Be5 {[%clk 0:00:00]} 125. Ke6 {[%clk 0:00:00]}  Bf4 {[%clk 0:00:00]} 126. Kf7 {[%clk 0:00:00]}  Be5 {[%clk 0:00:00]} 127. Kg6 {[%clk 0:00:00]}  Bf4 {[%clk 0:00:00]} 128. Kh5 {[%clk 0:00:00]}  Be5 {[%clk 0:00:00]} 129. Kg4 {[%clk 0:00:00]}  Bd6 {[%clk 0:00:00]} 130. Kf3 {[%clk 0:00:00]}  Be5 {[%clk 0:00:00]} 131. Bg6 {[%clk 0:00:00]}  Bd6 {[%clk 0:00:00]} 132. Bh7 {[%clk 0:00:00]}  Be5 {[%clk 0:00:00]} 133. Kg4 {[%clk 0:00:00]}  Bd6 {[%clk 0:00:00]} 134. Kf5 {[%clk 0:00:00]}  Be5 {[%clk 0:00:00]} 135. Ke6 {[%clk 0:00:00]}  Bf4 {[%clk 0:00:00]} 136. Kd7 {[%clk 0:00:00]}  Be5 {[%clk 0:00:00]} 137. Kc6 {[%clk 0:00:00]}  Bf4 {[%clk 0:00:00]} 138. Bg6 {[%clk 0:00:00]}  Be5 {[%clk 0:00:00]} 139. Bf5 {[%clk 0:00:00]}  Bf4 {[%clk 0:00:00]} 140. Kd7 {[%clk 0:00:00]}  Be5 {[%clk 0:00:00]} 141. Ke7 {[%clk 0:00:00]}  Bf4 {[%clk 0:00:00]} 142. e5 {[%clk 0:00:00]}  Bxe5 {[%clk 0:00:00]} 1/2-1/2


[Site "https://www.chess.com"]

[Event "Titled Tuesday Blitz August 16 Late 2022"]
[White "Barash, Anton"]
[Black "Liu, Casper"]
[WhiteFideId "30935229"]
[BlackFideId "1454153"]
[WhiteElo "2088"]
[BlackElo "2025"]
[Result "1-0"]
[Round "05"]
[TimeControl "180+1"]
[Date "2022.08.18"]
[WhiteClock "0:00:00"]
[BlackClock "0:00:00"]

1. e4 {[%clk 0:00:00]}  Nc6 {[%clk 0:00:00]} 2. Nc3 {[%clk 0:00:00]}  Nf6 {[%clk 0:00:00]} 3. d4 {[%clk 0:00:00]}  e5 {[%clk 0:00:00]} 4. dxe5 {[%clk 0:00:00]}  Nxe5 {[%clk 0:00:00]} 5. f4 {[%clk 0:00:00]}  Ng6 {[%clk 0:00:00]} 6. Nf3 {[%clk 0:00:00]}  Bc5 {[%clk 0:00:00]} 7. Bc4 {[%clk 0:00:00]}  O-O {[%clk 0:00:00]} 8. Qe2 {[%clk 0:00:00]}  Re8 {[%clk 0:00:00]} 9. Ng5 {[%clk 0:00:00]}  Re7 {[%clk 0:00:00]} 10. Be3 {[%clk 0:00:00]}  Bxe3 {[%clk 0:00:00]} 11. Qxe3 {[%clk 0:00:00]}  h6 {[%clk 0:00:00]} 12. Nxf7 {[%clk 0:00:00]}  Rxf7 {[%clk 0:00:00]} 13. O-O-O {[%clk 0:00:00]}  Qf8 {[%clk 0:00:00]} 14. h3 {[%clk 0:00:00]}  d6 {[%clk 0:00:00]} 15. g4 {[%clk 0:00:00]}  Kh7 {[%clk 0:00:00]} 16. Bxf7 {[%clk 0:00:00]}  Qxf7 {[%clk 0:00:00]} 17. g5 {[%clk 0:00:00]}  Nh5 {[%clk 0:00:00]} 18. f5 {[%clk 0:00:00]}  hxg5 {[%clk 0:00:00]} 19. fxg6+ {[%clk 0:00:00]}  Qxg6 {[%clk 0:00:00]} 20. Rdg1 {[%clk 0:00:00]}  Bd7 {[%clk 0:00:00]} 21. Rxg5 {[%clk 0:00:00]}  Qh6 {[%clk 0:00:00]} 22. Rhg1 {[%clk 0:00:00]}  Rf8 {[%clk 0:00:00]} 23. Qd4 {[%clk 0:00:00]}  b5 {[%clk 0:00:00]} 24. Kb1 {[%clk 0:00:00]}  Be6 {[%clk 0:00:00]} 25. Rxh5 {[%clk 0:00:00]}  Qxh5 {[%clk 0:00:00]} 26. Qxg7# {[%clk 0:00:00]} 1-0


[Site "https://www.chess.com"]

[Event "Titled Tuesday Blitz August 16 Late 2022"]
[White "Bayo Milagro, Alvaro"]
[Black "Gheorghiu, Calin"]
[WhiteFideId "22275240"]
[BlackFideId "1200305"]
[WhiteElo "2270"]
[BlackElo "2168"]
[Result "0-1"]
[Round "05"]
[TimeControl "180+1"]
[Date "2022.08.18"]
[WhiteClock "0:00:00"]
[BlackClock "0:00:00"]

1. d4 {[%clk 0:00:00]}  Nf6 {[%clk 0:00:00]} 2. Nf3 {[%clk 0:00:00]}  d5 {[%clk 0:00:00]} 3. c4 {[%clk 0:00:00]}  e6 {[%clk 0:00:00]} 4. g3 {[%clk 0:00:00]}  Bb4+ {[%clk 0:00:00]} 5. Nbd2 {[%clk 0:00:00]}  dxc4 {[%clk 0:00:00]} 6. Bg2 {[%clk 0:00:00]}  b5 {[%clk 0:00:00]} 7. O-O {[%clk 0:00:00]}  O-O {[%clk 0:00:00]} 8. a3 {[%clk 0:00:00]}  Be7 {[%clk 0:00:00]} 9. b3 {[%clk 0:00:00]}  cxb3 {[%clk 0:00:00]} 10. Nxb3 {[%clk 0:00:00]}  Bb7 {[%clk 0:00:00]} 11. Qc2 {[%clk 0:00:00]}  Be4 {[%clk 0:00:00]} 12. Qb2 {[%clk 0:00:00]}  c6 {[%clk 0:00:00]} 13. Bd2 {[%clk 0:00:00]}  Nbd7 {[%clk 0:00:00]} 14. Rac1 {[%clk 0:00:00]}  Nb6 {[%clk 0:00:00]} 15. Ne5 {[%clk 0:00:00]}  Bxg2 {[%clk 0:00:00]} 16. Kxg2 {[%clk 0:00:00]}  Qd5+ {[%clk 0:00:00]} 17. f3 {[%clk 0:00:00]}  Nc4 {[%clk 0:00:00]} 18. Nxc4 {[%clk 0:00:00]}  bxc4 {[%clk 0:00:00]} 19. Na5 {[%clk 0:00:00]}  Rab8 {[%clk 0:00:00]} 20. Qc3 {[%clk 0:00:00]}  c5 {[%clk 0:00:00]} 21. dxc5 {[%clk 0:00:00]}  Bxc5 {[%clk 0:00:00]} 22. Nxc4 {[%clk 0:00:00]}  Rfd8 {[%clk 0:00:00]} 23. Bf4 {[%clk 0:00:00]}  Rbc8 {[%clk 0:00:00]} 24. Rfd1 {[%clk 0:00:00]}  Qh5 {[%clk 0:00:00]} 25. Nd6 {[%clk 0:00:00]}  Bxd6 {[%clk 0:00:00]} 26. Qxc8 {[%clk 0:00:00]}  Rxc8 {[%clk 0:00:00]} 27. Rxc8+ {[%clk 0:00:00]}  Bf8 {[%clk 0:00:00]} 28. Rdd8 {[%clk 0:00:00]}  h6 {[%clk 0:00:00]} 29. Rxf8+ {[%clk 0:00:00]}  Kh7 {[%clk 0:00:00]} 30. Rc7 {[%clk 0:00:00]}  e5 {[%clk 0:00:00]} 31. Be3 {[%clk 0:00:00]}  Nd5 {[%clk 0:00:00]} 32. Rfxf7 {[%clk 0:00:00]}  Nxe3+ {[%clk 0:00:00]} 33. Kf2 {[%clk 0:00:00]}  Nd5 {[%clk 0:00:00]} 34. Rxg7+ {[%clk 0:00:00]}  Kh8 {[%clk 0:00:00]} 35. Rxa7 {[%clk 0:00:00]}  Qxh2+ {[%clk 0:00:00]} 36. Ke1 {[%clk 0:00:00]}  Qg1+ {[%clk 0:00:00]} 37. Kd2 {[%clk 0:00:00]}  Qd4+ {[%clk 0:00:00]} 38. Ke1 {[%clk 0:00:00]}  Qg1+ {[%clk 0:00:00]} 39. Kd2 {[%clk 0:00:00]}  Qe3+ {[%clk 0:00:00]} 40. Kc2 {[%clk 0:00:00]}  Qc3+ {[%clk 0:00:00]} 41. Kb1 {[%clk 0:00:00]}  Qb3+ {[%clk 0:00:00]} 42. Kc1 {[%clk 0:00:00]}  Qc3+ {[%clk 0:00:00]} 43. Kb1 {[%clk 0:00:00]}  Ne3 {[%clk 0:00:00]} 44. Rgc7 {[%clk 0:00:00]}  Qb3+ {[%clk 0:00:00]} 45. Kc1 {[%clk 0:00:00]}  Qd1+ {[%clk 0:00:00]} 46. Kb2 {[%clk 0:00:00]}  Qxe2+ {[%clk 0:00:00]} 47. Kb3 {[%clk 0:00:00]}  Qd3+ {[%clk 0:00:00]} 48. Kb4 {[%clk 0:00:00]}  Nd5+ {[%clk 0:00:00]} 49. Kc5 {[%clk 0:00:00]}  Nxc7 {[%clk 0:00:00]} 0-1


[Site "https://www.chess.com"]

[Event "Titled Tuesday Blitz August 16 Late 2022"]
[White "Boruchovsky, Avital"]
[Black "Isajevsky, Anton"]
[WhiteFideId "2800055"]
[BlackFideId "4142500"]
[WhiteElo "2466"]
[BlackElo "2510"]
[Result "0-1"]
[Round "05"]
[TimeControl "180+1"]
[Date "2022.08.16"]
[WhiteClock "0:00:03"]
[BlackClock "0:00:11"]

1. d4 {[%clk 0:03:00]}  d5 {[%clk 0:02:59]} 2. c4 {[%clk 0:03:00]}  e6 {[%clk 0:02:59]} 3. Nc3 {[%clk 0:03:00]}  Be7 {[%clk 0:02:59]} 4. cxd5 {[%clk 0:03:00]}  exd5 {[%clk 0:03:00]} 5. Bf4 {[%clk 0:03:00]}  c6 {[%clk 0:03:01]} 6. e3 {[%clk 0:03:00]}  Bd6 {[%clk 0:03:01]} 7. Bg3 {[%clk 0:02:53]}  Ne7 {[%clk 0:03:00]} 8. Bd3 {[%clk 0:02:52]}  Bf5 {[%clk 0:02:40]} 9. Nf3 {[%clk 0:02:49]}  O-O {[%clk 0:02:36]} 10. O-O {[%clk 0:02:35]}  Bxg3 {[%clk 0:02:27]} 11. hxg3 {[%clk 0:02:36]}  Nd7 {[%clk 0:01:59]} 12. b4 {[%clk 0:02:34]}  a6 {[%clk 0:01:58]} 13. a4 {[%clk 0:02:30]}  Nb6 {[%clk 0:01:47]} 14. Ne5 {[%clk 0:02:11]}  f6 {[%clk 0:01:44]} 15. Bxf5 {[%clk 0:02:11]}  Nxf5 {[%clk 0:01:44]} 16. Nd3 {[%clk 0:02:11]}  Nc4 {[%clk 0:01:28]} 17. Nc5 {[%clk 0:02:10]}  Qe7 {[%clk 0:01:10]} 18. b5 {[%clk 0:01:45]}  axb5 {[%clk 0:00:42]} 19. axb5 {[%clk 0:01:44]}  Ncxe3 {[%clk 0:00:43]} 20. fxe3 {[%clk 0:01:03]}  Qxe3+ {[%clk 0:00:42]} 21. Kh2 {[%clk 0:00:59]}  Qxg3+ {[%clk 0:00:37]} 22. Kh1 {[%clk 0:00:58]}  Qxc3 {[%clk 0:00:33]} 23. Rc1 {[%clk 0:00:14]}  Ng3+ {[%clk 0:00:24]} 24. Kg1 {[%clk 0:00:14]}  Qe3+ {[%clk 0:00:24]} 25. Rf2 {[%clk 0:00:14]}  Ra2 {[%clk 0:00:23]} 26. Rc2 {[%clk 0:00:13]}  Rfa8 {[%clk 0:00:21]} 27. Kh2 {[%clk 0:00:11]}  Ra1 {[%clk 0:00:13]} 28. Rf3 {[%clk 0:00:04]}  Qh6+ {[%clk 0:00:11]} 29. Kxg3 {[%clk 0:00:03]}  Rxd1 {[%clk 0:00:11]} 0-1


[Site "https://www.chess.com"]